bitfinex/quotes_SOLUSD_20220208
["timestamp","ask_amount","ask_price","bid_price","bid_amount"]
[1644361022580,0.02983913,113.21,113.14,4.418]
[1644361022780,0.02983913,113.21,113.14,0.25]
[1644361023078,44.61076679,113.22,113.14,0.25]
[1644361023278,38.61076679,113.22,113.14,0.25]
[1644361023779,38.61076679,113.22,113.15,13.2532]
[1644361023979,38.58092766,113.22,113.15,13.2532]
[1644361024177,38.58092766,113.22,113.15,13.5032]
[1644361025379,38.58092766,113.22,113.15,19.2532]
[1644361026599,38.58092766,113.22,113.15,19.5032]
[1644361026802,1.25712766,113.21,113.15,19.5032]
[1644361031004,1.50712766,113.21,113.15,19.5032]
[1644361031710,1.25712766,113.2,113.15,19.5032]
[1644361032106,1.25712766,113.21,113.15,19.5032]
[1644361032309,1.25712766,113.22,113.15,33.9182]
[1644361032509,1.28696679,113.22,113.15,41.28152187]
[1644361032706,1.28696679,113.23,113.15,41.28152187]
[1644361032906,1.28696679,113.23,113.15,63.92192187]
[1644361033106,1.28696679,113.23,113.15,62.5586]
[1644361033310,1.25712766,113.22,113.15,62.5586]
[1644361033706,1.25712766,113.22,113.16,1.36332187]
[1644361033905,1.25712766,113.22,113.17,25.9563]
[1644361034107,0.02983913,113.23,113.17,31.9563]
[1644361034307,0.13171911,113.24,113.18,23.6812]
[1644361034506,1.38884677,113.24,113.18,36.3912]
[1644361034708,1.38884677,113.24,113.18,42.3912]
[1644361034907,0.13171911,113.24,113.18,36.6412]
[1644361035110,0.38171911,113.24,113.18,36.6412]
[1644361035307,0.13171911,113.24,113.18,36.6412]
[1644361035709,0.13171911,113.24,113.19,13.2467]
[1644361035907,1.38884677,113.24,113.19,13.2467]
[1644361036707,1.38884677,113.24,113.18,49.6427]
[1644361036908,4.416,113.23,113.18,13.2515]
[1644361037611,4.416,113.23,113.16,12.71]
[1644361037808,4.44583913,113.23,113.17,13.2524]
[1644361038013,24.3493859,113.24,113.17,13.2524]
[1644361038215,24.31954677,113.24,113.17,13.2524]
[1644361040215,24.56954677,113.24,113.17,13.2524]
[1644361040812,37.82044677,113.24,113.17,13.2524]
[1644361041613,37.57044677,113.24,113.17,13.2524]
[1644361041812,37.57044677,113.24,113.17,13.5024]
[1644361042412,1.38884677,113.24,113.17,13.5024]
[1644361042612,1.38884677,113.24,113.17,17.9184]
[1644361042817,0.13171911,113.24,113.17,17.9184]
[1644361043714,0.13171911,113.24,113.17,13.5024]
[1644361045014,0.13171911,113.24,113.17,19.5024]
[1644361045317,0.13171911,113.24,113.17,19.2524]
[1644361046714,0.13171911,113.24,113.17,19.5024]
[1644361048720,0.13171911,113.24,113.17,23.9184]
[1644361049220,0.13171911,113.24,113.17,36.6284]
[1644361049420,0.13171911,113.24,113.17,36.3784]
[1644361049921,0.13171911,113.24,113.17,42.9244]
[1644361050218,0.13171911,113.24,113.18,4.416]
[1644361050524,0.13171911,113.24,113.19,27.31662187]
[1644361050721,0.13171911,113.24,113.2,4.416]
[1644361050920,0.13171911,113.24,113.2,12.71]
[1644361051122,0.13171911,113.24,113.2,18.96]
[1644361051721,0.13171911,113.24,113.21,13.2444]
[1644361051926,0.13171911,113.24,113.22,4.15155757]
[1644361053731,0.13171911,113.24,113.1,158.9]
[1644361053923,0.16155824,113.24,113.11,47.5088379]
[1644361054123,4.417,113.23,113.13,1.25311857]
[1644361054324,4.417,113.23,113.12,4.417]
[1644361054325,0.02983913,113.22,113.12,4.417]
[1644361054924,23.68903913,113.22,113.12,4.417]
[1644361055124,23.68903913,113.22,113.11,45.0008]
[1644361055526,36.94203913,113.22,113.11,45.0008]
[1644361055739,36.94203913,113.22,113.13,13.2551]
[1644361055927,36.94203913,113.22,113.14,4.417]
[1644361056525,36.94203913,113.22,113.14,4.667]
[1644361056726,37.19203913,113.22,113.14,17.9203]
[1644361058236,37.19203913,113.22,113.14,13.5033]
[1644361059931,0.02983913,113.22,113.14,13.5033]
[1644361060135,6.02983913,113.23,113.14,13.5033]
[1644361060431,0.02983913,113.22,113.14,13.5033]
[1644361060632,0.02983913,113.23,113.14,13.5033]
[1644361062334,0.02983913,113.23,113.14,26.2133]
[1644361064340,0.02983913,113.23,113.15,4.417]
[1644361064542,0.02983913,113.23,113.17,13.2496]
[1644361064839,1.38884677,113.24,113.17,13.4996]
[1644361065040,1.38884677,113.24,113.18,1.36004204]
[1644361065240,0.13171911,113.24,113.18,18.73604204]
[1644361065440,0.13171911,113.24,113.18,24.73604204]
[1644361065643,0.13171911,113.24,113.19,1.36004204]
[1644361065841,0.13171911,113.24,113.19,1.61004204]
[1644361066042,0.13171911,113.24,113.19,14.32004204]
[1644361066241,0.13171911,113.24,113.2,5.77604204]
[1644361066441,0.13171911,113.24,113.21,13.2438]
[1644361066863,0.13171911,113.24,113.21,13.4938]
[1644361067749,0.13171911,113.24,113.22,0.33625732]
[1644361067951,0.13171911,113.24,113.22,13.58055732]
[1644361068151,0.13171911,113.24,113.22,0.33625732]
[1644361068349,5.72814262,113.23,113.22,0.33625732]
[1644361068558,0.13171911,113.24,113.22,0.33625732]
[1644361069352,0.13171911,113.24,113.22,13.58155732]
[1644361069554,0.13171911,113.24,113.22,0.33625732]
[1644361070755,0.13171911,113.24,113.22,13.58145732]
[1644361075880,0.13171911,113.24,113.22,0.33625732]
[1644361078694,0.13171911,113.24,113.22,13.58155732]
[1644361086703,0.13171911,113.24,113.22,13.83155732]
[1644361087102,0.13171911,113.24,113.22,13.58155732]
[1644361092811,0.13171911,113.24,113.22,13.83155732]
[1644361095235,0.13171911,113.24,113.22,13.58155732]
[1644361102747,0.13171911,113.24,113.22,13.83155732]
[1644361110957,0.13171911,113.24,113.22,0.33625732]
[1644361111555,5.72814262,113.23,113.17,67.8353]
[1644361111759,5.72814262,113.23,113.17,28.0924]
[1644361111955,5.72814262,113.23,113.17,23.6764]
[1644361112155,5.97814262,113.23,113.17,23.6764]
[1644361112558,5.97814262,113.23,113.17,29.6764]
[1644361112757,5.97814262,113.23,113.18,13.25]
[1644361114264,5.97814262,113.23,113.18,13.5]
[1644361117563,5.72814262,113.23,113.18,13.5]
[1644361120086,5.97814262,113.23,113.18,13.5]
[1644361120985,4.97814262,113.23,113.18,13.5]
[1644361121185,4.72814262,113.23,113.18,13.5]
[1644361121585,1.69594265,113.23,113.18,13.5]
[1644361123087,0.13171911,113.24,113.18,13.5]
[1644361123288,0.13171911,113.24,113.18,38.1664]
[1644361123486,0.13171911,113.24,113.18,44.1664]
[1644361124888,0.13171911,113.24,113.18,38.1664]
[1644361125491,0.13171911,113.24,113.18,44.1664]
[1644361125690,0.13171911,113.24,113.18,38.1664]
[1644361133810,0.13171911,113.24,113.18,39.51670657]
[1644361135313,0.13171911,113.24,113.18,37.9164]
[1644361136812,0.13171911,113.24,113.18,38.1664]
[1644361137513,0.13171911,113.24,113.18,37.9164]
[1644361137915,0.13171911,113.24,113.18,55.16045769]
[1644361138134,0.13171911,113.24,113.18,50.74445769]
[1644361138518,0.16155824,113.24,113.2,13.2458]
[1644361138720,0.13171911,113.24,113.2,37.7297]
[1644361140224,41.5177703,113.32,113.2,42.1457]
[1644361140423,0.0303952,113.25,113.21,14.64240965]
[1644361140624,0.0303952,113.28,113.23,13.2394]
[1644361140824,1.2896278,113.31,113.24,17.124]
[1644361141025,1.2896278,113.32,113.24,57.31591919]
[1644361141222,1.2896278,113.32,113.24,73.79432884]
[1644361141424,1.2896278,113.32,113.24,59.15191919]
[1644361141923,1.2896278,113.32,113.26,13.2384]
[1644361142124,1.2896278,113.32,113.26,22.5974]
[1644361142326,1.2896278,113.32,113.26,22.8474]
[1644361142624,1.5396278,113.32,113.26,22.8474]
[1644361143124,7.5396278,113.32,113.26,22.8474]
[1644361143324,1.5396278,113.32,113.26,22.8474]
[1644361143524,7.5396278,113.32,113.26,22.8474]
[1644361144128,6.2803952,113.32,113.26,22.8474]
[1644361145426,0.0303952,113.32,113.26,22.8474]
[1644361145647,6.0,113.32,113.26,22.8474]
[1644361146247,33.8276952,113.33,113.26,22.5974]
[1644361146451,33.8276952,113.33,113.26,13.2384]
[1644361146652,35.0869278,113.33,113.24,13.2423]
[1644361146855,35.0869278,113.33,113.24,13.4923]
[1644361147048,35.0869278,113.33,113.24,19.4923]
[1644361147252,35.3369278,113.33,113.24,19.4923]
[1644361147748,48.5769278,113.33,113.24,19.4923]
[1644361147956,48.5769278,113.33,113.24,13.2423]
[1644361148148,48.5769278,113.33,113.23,13.2437]
[1644361148349,1.2592326,113.32,113.23,13.2437]
[1644361148548,4.4443952,113.31,113.23,13.2437]
[1644361148748,0.0303952,113.3,113.23,13.2437]
[1644361148953,4.414,113.29,113.23,13.2437]
[1644361151755,38.1862952,113.3,113.23,13.2437]
[1644361152156,38.4362952,113.3,113.23,13.2437]
[1644361152855,38.4362952,113.3,113.24,1.34709338]
[1644361153057,42.8502952,113.3,113.22,13.2447]
[1644361153258,53.2435278,113.3,113.21,1.34709338]
[1644361153457,51.9842952,113.3,113.2,12.71]
[1644361153961,53.2435278,113.3,113.18,33.31795488]
[1644361154157,81.9652278,113.3,113.18,62.48785488]
[1644361154362,81.9652278,113.3,113.18,62.73785488]
[1644361154758,81.9652278,113.3,113.2,13.2468]
[1644361154958,77.5512278,113.3,113.2,13.2468]
[1644361155158,77.5512278,113.3,113.2,19.4968]
[1644361156159,13.2464,113.28,113.2,19.4968]
[1644361156360,29.1774952,113.27,113.2,19.4968]
[1644361156759,24.7321,113.27,113.2,19.4968]
[1644361157168,29.1471,113.27,113.2,19.4968]
[1644361157360,42.3939,113.27,113.2,13.2468]
[1644361157561,42.3939,113.27,113.19,13.2483]
[1644361157562,47.4392952,113.27,113.19,13.2483]
[1644361157863,47.4089,113.27,113.18,35.8799]
[1644361158062,4.4453952,113.26,113.18,36.1299]
[1644361158268,0.0303952,113.26,113.18,36.1299]
[1644361158664,0.0303952,113.26,113.18,42.1299]
[1644361158865,0.0303952,113.26,113.18,36.1299]
[1644361159867,13.2792952,113.26,113.18,49.3791]
[1644361160365,23.8412,113.25,113.18,49.3791]
[1644361162568,23.8412,113.25,113.18,13.2492]
[1644361162769,37.0909,113.25,113.18,13.2492]
[1644361163369,37.0909,113.25,113.18,13.4992]
[1644361166100,37.0909,113.25,113.18,13.2492]
[1644361166296,37.0909,113.25,113.18,13.4992]
[1644361167303,37.3409,113.25,113.18,13.4992]
[1644361167501,37.3409,113.25,113.18,0.25]
[1644361167701,37.3409,113.25,113.18,4.416]
[1644361168100,37.3409,113.25,113.18,4.666]
[1644361169105,37.3409,113.25,113.18,4.416]
[1644361169306,37.3409,113.25,113.18,17.6659]
[1644361170207,37.3409,113.25,113.18,13.2499]
[1644361171309,4.416,113.24,113.17,6.0]
[1644361171511,13.2543,113.22,113.15,0.024]
[1644361171908,13.2543,113.22,113.14,0.024]
[1644361172309,23.4284,113.21,113.14,13.2778]
[1644361172512,13.2551,113.2,113.15,0.024]
[1644361172709,13.2551,113.2,113.14,17.9448]
[1644361173109,13.2551,113.2,113.14,23.9448]
[1644361174311,36.6822,113.21,113.14,23.9448]
[1644361174511,36.6822,113.21,113.15,0.024]
[1644361175212,36.9322,113.21,113.15,0.024]
[1644361178016,36.9322,113.21,113.15,13.2774]
[1644361178214,36.9322,113.21,113.15,19.5274]
[1644361179814,23.6784,113.21,113.15,19.5274]
[1644361180414,23.6784,113.21,113.15,19.5034]
[1644361180817,0.25,113.21,113.15,19.5034]
[1644361181017,17.669,113.23,113.15,19.5034]
[1644361181317,17.669,113.23,113.16,0.024]
[1644361181514,17.669,113.23,113.17,13.252]
[1644361182117,17.669,113.23,113.17,13.502]
[1644361184018,17.919,113.23,113.17,13.252]
[1644361185519,17.919,113.23,113.17,13.502]
[1644361187020,17.919,113.23,113.17,13.526]
[1644361187519,17.919,113.23,113.17,13.276]
[1644361187724,17.919,113.23,113.17,13.526]
[1644361190225,17.669,113.23,113.17,13.276]
[1644361190422,17.669,113.23,113.17,13.502]
[1644361191821,17.669,113.23,113.17,0.25]
[1644361192023,17.669,113.23,113.17,0.024]
[1644361192223,17.919,113.23,113.16,13.5278]
[1644361192523,13.502,113.23,113.16,13.5278]
[1644361193123,13.502,113.23,113.16,13.2778]
[1644361193524,13.2547,113.21,113.16,13.2778]
[1644361193724,13.2547,113.21,113.16,0.024]
[1644361196935,13.2547,113.21,113.16,13.2781]
[1644361197330,13.2547,113.21,113.16,13.5281]
[1644361197534,13.5047,113.21,113.16,13.5281]
[1644361197935,13.5047,113.21,113.16,13.2781]
[1644361198357,13.5047,113.21,113.16,13.5281]
[1644361200461,13.5047,113.21,113.16,19.5281]
[1644361200757,13.2547,113.21,113.16,13.5281]
[1644361200963,13.2525,113.22,113.16,17.9451]
[1644361201360,13.2525,113.22,113.16,17.6951]
[1644361201562,13.2525,113.22,113.16,23.9451]
[1644361201759,13.2525,113.22,113.16,23.6951]
[1644361201960,13.2525,113.22,113.16,23.9451]
[1644361203362,13.2516,113.23,113.16,23.9451]
[1644361203563,13.2516,113.23,113.17,0.024]
[1644361203763,13.2516,113.23,113.16,23.9451]
[1644361203963,13.2516,113.23,113.16,48.0387]
[1644361205471,13.2503,113.24,113.16,48.0387]
[1644361205664,13.2503,113.24,113.17,0.024]
[1644361205866,13.2503,113.24,113.19,13.2504]
[1644361206068,13.2503,113.24,113.19,19.2504]
[1644361206266,13.2503,113.24,113.19,19.5004]
[1644361206673,13.5003,113.24,113.19,19.5004]
[1644361207867,13.5003,113.24,113.19,19.5244]
[1644361208570,0.25,113.24,113.19,19.5244]
[1644361208769,1.2592326,113.26,113.19,19.5244]
[1644361208969,9.02549208,113.31,113.2,92.865]
[1644361209171,4.415,113.31,113.23,13.55123161]
[1644361209370,27.49488547,113.34,113.24,4.414]
[1644361209569,23.08088547,113.34,113.24,33.0842]
[1644361209770,23.08088547,113.34,113.24,33.3342]
[1644361210470,23.08088547,113.34,113.27,13.2393]
[1644361211073,27.49288547,113.34,113.27,13.2393]
[1644361211672,27.74288547,113.34,113.27,13.2393]
[1644361213073,23.33088547,113.34,113.27,13.2393]
[1644361213976,4.412,113.33,113.25,13.2419]
[1644361214174,34.4105,113.33,113.23,4.412]
[1644361214377,34.4105,113.33,113.21,56.8568]
[1644361214574,29.9985,113.33,113.21,56.8568]
[1644361215375,29.9985,113.33,113.21,62.8568]
[1644361215576,13.2449,113.31,113.23,13.2453]
[1644361215876,34.4125,113.33,113.23,13.2453]
[1644361216078,34.4125,113.33,113.23,13.4953]
[1644361216676,47.6562,113.33,113.23,13.4953]
[1644361216899,47.6562,113.33,113.23,13.2453]
[1644361217278,47.9062,113.33,113.23,13.2453]
[1644361218378,47.6562,113.33,113.23,13.2453]
[1644361218580,43.2422,113.33,113.23,13.4953]
[1644361219179,4.413,113.32,113.23,13.4953]
[1644361219579,13.2454,113.31,113.23,13.4953]
[1644361219780,24.8877,113.3,113.23,13.4953]
[1644361220079,30.8877,113.3,113.23,13.4953]
[1644361223183,6.0,113.3,113.23,13.4953]
[1644361223382,17.6571,113.33,113.24,4.414]
[1644361223383,6.0,113.33,113.24,4.414]
[1644361223584,10.414,113.34,113.26,13.2407]
[1644361223985,23.2954,113.33,113.26,13.2407]
[1644361224785,23.5454,113.33,113.26,13.2407]
[1644361224985,29.57637968,113.33,113.26,13.2407]
[1644361225486,23.57637968,113.33,113.26,13.2407]
[1644361227190,23.57637968,113.33,113.26,13.4907]
[1644361229090,23.57637968,113.33,113.26,17.9037]
[1644361230693,0.28097968,113.33,113.26,19.24540121]
[1644361231194,0.03097968,113.34,113.26,160.10586887]
[1644361231395,0.03097968,113.34,113.26,169.23286887]
[1644361231593,0.03097968,113.37,113.3,13.234]
[1644361231915,0.03097968,113.33,113.3,37.3384]
[1644361232092,4.44297968,113.37,113.31,1.33625732]
[1644361232391,4.412,113.37,113.31,1.33625732]
[1644361232592,6.25,113.37,113.31,1.33625732]
[1644361232791,6.25,113.37,113.31,14.57165732]
[1644361233194,6.25,113.37,113.31,14.82165732]
[1644361233195,0.25,113.37,113.31,14.82165732]
[1644361233392,0.03097968,113.39,113.31,14.82165732]
[1644361233995,0.03097968,113.39,113.31,14.57165732]
[1644361234393,0.03097968,113.39,113.31,14.82165732]
[1644361234591,0.03097968,113.39,113.31,14.57165732]
[1644361235693,13.26427968,113.39,113.31,14.57165732]
[1644361235893,0.03097968,113.38,113.31,14.57165732]
[1644361238095,4.44097968,113.38,113.31,14.57165732]
[1644361238295,27.81147968,113.38,113.31,14.57165732]
[1644361238495,33.81147968,113.38,113.31,14.57165732]
[1644361239094,33.81147968,113.38,113.31,14.82165732]
[1644361239897,47.04587968,113.38,113.31,14.82165732]
[1644361240095,42.8549,113.38,113.31,14.82165732]
[1644361240297,29.6205,113.38,113.31,14.82165732]
[1644361240496,29.6205,113.38,113.31,20.57335853]
[1644361240997,6.25,113.38,113.31,20.57335853]
[1644361241196,0.25,113.38,113.31,20.57335853]
[1644361241396,6.25,113.38,113.31,20.57335853]
[1644361241597,6.0,113.38,113.31,20.57335853]
[1644361241802,6.25,113.38,113.31,20.57335853]
[1644361241997,0.28097968,113.38,113.31,20.57335853]
[1644361242198,0.03097968,113.39,113.31,20.32335853]
[1644361242397,0.03097968,113.4,113.31,14.57165732]
[1644361242598,0.03097968,113.38,113.31,14.57165732]
[1644361242797,0.03097968,113.39,113.31,14.57165732]
[1644361242998,24.27897968,113.4,113.31,14.57165732]
[1644361243202,0.03097968,113.39,113.31,14.57165732]
[1644361243600,0.03097968,113.39,113.31,14.82165732]
[1644361244599,0.03097968,113.39,113.31,20.82165732]
[1644361244799,0.03097968,113.39,113.31,14.82165732]
[1644361246202,0.03097968,113.39,113.32,24.524]
[1644361246401,0.03097968,113.39,113.32,37.7565]
[1644361246601,0.03097968,113.39,113.32,38.0065]
[1644361247300,0.03097968,113.39,113.32,39.34820121]
[1644361247501,0.03097968,113.39,113.32,43.75820121]
[1644361249102,0.03097968,113.39,113.32,49.75820121]
[1644361249302,0.03097968,113.39,113.32,43.75820121]
[1644361250405,0.03097968,113.39,113.32,56.46820121]
[1644361255630,0.03097968,113.39,113.32,84.98726887]
[1644361255832,0.03097968,113.39,113.32,90.98726887]
[1644361256032,0.03097968,113.39,113.32,84.98726887]
[1644361260536,0.03097968,113.39,113.32,56.21820121]
[1644361260737,0.03097968,113.39,113.32,17.12]
[1644361260938,4.44097968,113.39,113.32,4.41]
[1644361261137,0.03097968,113.38,113.32,4.41]
[1644361261538,13.236,113.37,113.32,4.41]
[1644361262739,13.236,113.37,113.31,13.2348]
[1644361263140,13.236,113.37,113.31,13.4848]
[1644361263542,13.236,113.37,113.31,0.25]
[1644361264242,13.236,113.37,113.3,37.1872]
[1644361265241,13.486,113.37,113.3,37.1872]
[1644361266041,13.486,113.37,113.3,36.9372]
[1644361267350,13.486,113.37,113.3,38.27890121]
[1644361267543,13.486,113.37,113.3,44.52890121]
[1644361267746,13.486,113.37,113.3,38.52890121]
[1644361268145,37.69167968,113.38,113.3,38.52890121]
[1644361268345,24.45797968,113.38,113.33,13.232]
[1644361268545,24.427,113.38,113.33,22.704]
[1644361268745,24.427,113.38,113.33,22.954]
[1644361269344,13.26247968,113.4,113.33,22.954]
[1644361269544,0.03097968,113.4,113.33,22.954]
[1644361269744,6.03097968,113.4,113.33,22.954]
[1644361269947,0.03097968,113.4,113.33,22.954]
[1644361270146,6.03097968,113.4,113.33,22.954]
[1644361270545,0.03097968,113.4,113.33,22.954]
[1644361270745,6.03097968,113.4,113.33,22.954]
[1644361271447,0.03097968,113.4,113.33,22.954]
[1644361271646,6.03097968,113.4,113.33,22.954]
[1644361272145,0.28097968,113.4,113.33,22.954]
[1644361272346,0.03097968,113.4,113.33,22.954]
[1644361274147,47.55327968,113.41,113.33,22.954]
[1644361274348,0.03121743,113.4,113.33,22.954]
[1644361274749,22.98421743,113.4,113.33,22.954]
[1644361274948,22.98421743,113.4,113.33,22.704]
[1644361275154,28.98421743,113.4,113.33,22.704]
[1644361276250,28.98421743,113.4,113.33,22.954]
[1644361276950,6.03121743,113.4,113.33,22.954]
[1644361277753,0.03121743,113.4,113.33,22.954]
[1644361278351,0.03121743,113.4,113.33,22.704]
[1644361279153,0.03121743,113.4,113.33,17.642]
[1644361279554,0.03121743,113.4,113.34,24.2502]
[1644361279754,0.03121743,113.4,113.35,13.2294]
[1644361280154,0.03121743,113.4,113.35,13.4794]
[1644361280554,0.03121743,113.4,113.35,13.2294]
[1644361281154,0.03121743,113.4,113.35,13.4794]
[1644361282155,0.03121743,113.4,113.35,13.2294]
[1644361282355,0.03121743,113.4,113.35,13.4794]
[1644361282557,48.8251,113.41,113.35,13.2294]
[1644361282959,44.4151,113.41,113.35,13.2294]
[1644361283157,44.44631743,113.41,113.35,13.2294]
[1644361283560,44.4151,113.41,113.35,13.2294]
[1644361284362,4.409,113.4,113.32,23.6661]
[1644361284562,13.2342,113.38,113.31,12.71]
[1644361284761,13.2342,113.38,113.31,18.71]
[1644361284963,13.26541743,113.38,113.31,12.71]
[1644361285861,13.26541743,113.38,113.32,13.2338]
[1644361286061,24.9112,113.37,113.32,13.2338]
[1644361287062,24.9112,113.37,113.32,13.4838]
[1644361288193,25.1612,113.37,113.32,13.4838]
[1644361291792,0.25,113.37,113.32,13.4838]
[1644361291988,13.2342,113.38,113.32,13.4838]
[1644361292190,13.2342,113.38,113.32,13.2338]
[1644361292589,13.26541743,113.38,113.32,13.2338]
[1644361295389,13.26541743,113.38,113.31,13.2351]
[1644361295792,13.51541743,113.38,113.31,13.2351]
[1644361295994,24.6309,113.37,113.31,13.2351]
[1644361296391,37.8656,113.37,113.31,13.2351]
[1644361299295,38.1156,113.37,113.31,13.2351]
[1644361300699,37.8656,113.37,113.31,13.2351]
[1644361301199,37.8656,113.37,113.31,13.4851]
[1644361303300,38.1156,113.37,113.31,13.4851]
[1644361304302,38.1156,113.37,113.31,13.2351]
[1644361305102,44.1156,113.37,113.31,13.2351]
[1644361305302,44.1156,113.37,113.3,13.2363]
[1644361305502,38.1156,113.37,113.3,13.2363]
[1644361305902,44.1156,113.37,113.3,13.2363]
[1644361306104,38.1156,113.37,113.3,13.2363]
[1644361307605,38.1156,113.37,113.3,17.6463]
[1644361308205,24.8809,113.37,113.3,17.8963]
[1644361308807,13.26511743,113.38,113.3,17.8963]
[1644361309008,13.26511743,113.38,113.3,23.0613]
[1644361309210,13.26511743,113.38,113.31,24.036]
[1644361309408,13.2339,113.38,113.33,13.2334]
[1644361309612,13.26511743,113.38,113.33,25.3374]
[1644361309819,0.03121743,113.38,113.33,25.5874]
[1644361310016,23.66381743,113.39,113.33,25.5874]
[1644361310218,0.03121743,113.38,113.33,25.5874]
[1644361310516,23.66381743,113.39,113.35,13.2311]
[1644361310717,0.03121743,113.38,113.35,13.2311]
[1644361310915,23.6326,113.39,113.36,1.33625732]
[1644361311117,0.03121743,113.38,113.36,1.33625732]
[1644361311316,4.72814262,113.37,113.36,1.33625732]
[1644361311515,1.69594265,113.37,113.36,1.33625732]
[1644361311722,23.6326,113.39,113.36,1.33625732]
[1644361311917,23.6326,113.39,113.36,14.56705732]
[1644361312517,23.8826,113.39,113.36,14.56705732]
[1644361312919,23.8826,113.39,113.36,1.33625732]
[1644361313421,4.72814262,113.38,113.36,1.33625732]
[1644361313624,3.03219997,113.38,113.36,1.33625732]
[1644361313822,0.03121743,113.42,113.36,1.58625732]
[1644361314018,0.03121743,113.4,113.36,23.58715732]
[1644361314220,0.03121743,113.42,113.37,22.6211]
[1644361314437,0.03121743,113.43,113.37,22.6211]
[1644361314638,6.0,113.44,113.37,22.8711]
[1644361314840,0.03121743,113.43,113.37,22.8711]
[1644361315038,0.03121743,113.45,113.37,22.8711]
[1644361315238,34.6737,113.46,113.37,22.8711]
[1644361315239,0.03121743,113.43,113.37,22.8711]
[1644361315439,0.03121743,113.45,113.37,22.8711]
[1644361315843,13.2272,113.44,113.38,13.2271]
[1644361316243,19.2272,113.44,113.38,13.4771]
[1644361316548,0.03121743,113.45,113.38,13.4771]
[1644361319144,0.03121743,113.45,113.38,24.4291]
[1644361319342,0.03121743,113.45,113.38,38.46501393]
[1644361319544,0.03121743,113.45,113.38,44.46501393]
[1644361319943,0.03121743,113.45,113.39,4.408]
[1644361320143,0.03121743,113.46,113.4,13.2224]
[1644361320343,24.6118,113.47,113.4,13.4724]
[1644361320546,0.03121743,113.46,113.4,13.4724]
[1644361320744,30.64301743,113.47,113.4,13.4724]
[1644361320945,4.43921743,113.48,113.4,13.4724]
[1644361321145,0.03121743,113.47,113.43,13.2158]
[1644361321344,4.408,113.48,113.43,13.2158]
[1644361321345,4.408,113.48,113.44,12.71]
[1644361321549,4.408,113.48,113.44,18.71]
[1644361321847,4.408,113.48,113.44,18.96]
[1644361322245,4.408,113.48,113.45,13.216]
[1644361322446,4.408,113.48,113.45,25.926]
[1644361322650,4.408,113.48,113.46,1.33625732]
[1644361324451,4.408,113.48,113.46,7.33625732]
[1644361324850,4.408,113.48,113.47,13.2155]
[1644361325051,4.406,113.53,113.47,13.2155]
[1644361325452,10.406,113.53,113.47,13.2155]
[1644361326555,6.0,113.53,113.47,13.2155]
[1644361326951,0.03121743,113.54,113.47,13.2155]
[1644361328352,4.405,113.53,113.47,13.2155]
[1644361328554,10.405,113.53,113.47,13.2155]
[1644361329563,6.0,113.53,113.47,13.2155]
[1644361329955,0.03121743,113.54,113.47,13.2155]
[1644361333556,4.43621743,113.54,113.47,13.2155]
[1644361334157,10.43621743,113.54,113.47,24.7825]
[1644361335957,10.43621743,113.54,113.47,37.4925]
[1644361336156,10.43621743,113.54,113.47,39.06456414]
[1644361336355,10.43621743,113.54,113.47,37.4925]
[1644361336756,10.43621743,113.54,113.47,37.7425]
[1644361337155,4.43621743,113.54,113.47,39.06456414]
[1644361337357,0.03121743,113.54,113.48,4.405]
[1644361337656,0.03121743,113.54,113.49,13.2124]
[1644361338156,24.7998,113.55,113.49,13.2124]
[1644361338357,0.03121743,113.56,113.49,13.2124]
[1644361338557,0.03121743,113.56,113.5,12.71]
[1644361338759,0.03121743,113.57,113.51,13.2092]
[1644361338958,0.03121743,113.58,113.51,17.6112]
[1644361339158,0.03121743,113.58,113.51,23.6112]
[1644361339358,0.03121743,113.58,113.52,14.03206414]
[1644361339660,0.22183458,113.59,113.53,4.402]
[1644361339858,0.03121743,113.58,113.54,12.71]
[1644361340058,0.25305201,113.59,113.56,13.2047]